bitfinex/quotes_BTCUSD_20250713
["timestamp","ask_amount","ask_price","bid_price","bid_amount"]
[1752418143535,0.53688211,118480.0,118470.0,0.14236]
[1752418143769,0.70568697,118480.0,118470.0,0.001]
[1752418143979,0.55986284,118480.0,118470.0,0.1422]
[1752418144182,0.74954796,118480.0,118470.0,0.1432]
[1752418144402,0.73266841,118480.0,118470.0,0.1432]
[1752418144610,0.8867241,118480.0,118470.0,0.1432]
[1752418144824,0.82591252,118480.0,118470.0,0.1432]
[1752418145069,0.83376575,118480.0,118470.0,0.1432]
[1752418145522,0.82978054,118480.0,118470.0,0.1422]
[1752418145767,0.63850542,118480.0,118470.0,0.1422]
[1752418146019,0.82484622,118480.0,118470.0,0.1432]
[1752418146242,1.05597205,118480.0,118470.0,0.1422]
[1752418146669,1.05897205,118480.0,118470.0,0.1432]
[1752418146884,1.13487805,118480.0,118470.0,0.1432]
[1752418147091,1.13487805,118480.0,118470.0,0.14352]
[1752418147524,1.18205977,118480.0,118470.0,0.14348]
[1752418147998,1.18328103,118480.0,118470.0,0.14348]
[1752418148201,1.006036,118480.0,118470.0,0.14348]
[1752418148413,0.89073505,118480.0,118470.0,0.14348]
[1752418148625,0.60116425,118480.0,118470.0,0.14348]
[1752418148859,0.60116425,118480.0,118470.0,0.157828]
[1752418149086,0.47741398,118480.0,118470.0,0.157828]
[1752418149299,0.43406222,118480.0,118470.0,0.160888]
[1752418149715,0.43406222,118480.0,118470.0,0.157828]
[1752418149964,0.42619244,118480.0,118470.0,0.157828]
[1752418150198,0.42619244,118480.0,118470.0,0.14348]
[1752418150415,0.43406245,118480.0,118470.0,0.14348]
[1752418150624,0.77406239,118480.0,118470.0,0.14348]
[1752418151523,0.77731239,118480.0,118470.0,0.14348]
[1752418151948,0.77406239,118480.0,118470.0,0.157828]
[1752418152361,0.77406342,118480.0,118470.0,0.157828]
[1752418153433,0.77406342,118480.0,118470.0,0.360108]
[1752418154356,0.77406393,118480.0,118470.0,0.360108]
[1752418156719,0.77406393,118480.0,118470.0,0.363168]
[1752418156933,0.42619244,118480.0,118470.0,0.425968]
[1752418157131,0.43407292,118480.0,118470.0,0.394468]
[1752418157555,0.43407292,118480.0,118470.0,0.363168]
[1752418157821,0.43107292,118480.0,118470.0,0.362168]
[1752418158057,0.43207292,118480.0,118470.0,0.363168]
[1752418158267,0.43207292,118480.0,118470.0,0.360108]
[1752418158891,0.42407292,118480.0,118470.0,0.359108]
[1752418159110,0.42407292,118480.0,118470.0,0.362168]
[1752418159332,0.42607292,118480.0,118470.0,0.363168]
[1752418159542,0.42607292,118480.0,118470.0,0.360108]
[1752418159746,0.42607292,118480.0,118470.0,0.34456]
[1752418159961,0.42932292,118480.0,118470.0,0.34456]
[1752418160619,0.76932292,118480.0,118470.0,0.20428]
[1752418160832,0.83332292,118480.0,118470.0,0.3444]
[1752418161049,0.89235259,118480.0,118470.0,0.3444]
[1752418161271,0.89235266,118480.0,118470.0,0.3444]
[1752418161487,0.89235259,118480.0,118470.0,0.3444]
[1752418161689,0.90689344,118480.0,118470.0,0.3444]
[1752418161913,0.91658274,118480.0,118470.0,0.3444]
[1752418162135,0.90689344,118480.0,118470.0,0.3444]
[1752418162561,0.92502467,118480.0,118470.0,0.3444]
[1752418163022,0.916585,118480.0,118470.0,0.3444]
[1752418163435,0.92502467,118480.0,118470.0,0.3444]
[1752418163646,0.916585,118480.0,118470.0,0.3444]
[1752418163863,0.92502467,118480.0,118470.0,0.3444]
[1752418164297,0.90204415,118480.0,118470.0,0.37884]
[1752418164511,0.83479415,118480.0,118470.0,0.37884]
[1752418165168,0.44420415,118480.0,118470.0,0.44663]
[1752418165424,0.42607292,118480.0,118470.0,0.44663]
[1752418165643,0.75819244,118480.0,118470.0,0.44663]
[1752418165872,0.76607594,118480.0,118470.0,0.44663]
[1752418166295,0.76607595,118480.0,118470.0,0.44663]
[1752418166508,0.76607595,118480.0,118470.0,0.3444]
[1752418166726,0.76607595,118480.0,118470.0,0.34739]
[1752418166959,0.76607595,118480.0,118470.0,0.41219]
[1752418168441,0.75819244,118480.0,118470.0,0.41219]
[1752418168659,0.75819244,118480.0,118470.0,0.453409]
[1752418169978,0.42276251,118480.0,118470.0,0.453409]
[1752418171077,0.60959521,118480.0,118470.0,0.002]
[1752418171293,0.64269521,118480.0,118470.0,0.14136]
[1752418171510,0.57859521,118480.0,118470.0,0.14136]
[1752418171727,0.57859521,118480.0,118470.0,0.155696]
[1752418171951,0.57540521,118480.0,118470.0,0.155696]
[1752418172182,0.50819244,118480.0,118470.0,0.155696]
[1752418172388,0.75819244,118480.0,118470.0,0.158686]
[1752418173084,0.75819244,118480.0,118470.0,0.155696]
[1752418173309,0.75819244,118480.0,118470.0,0.14156]
[1752418173742,0.76138244,118480.0,118470.0,0.14156]
[1752418174801,0.75819244,118480.0,118470.0,0.14156]
[1752418175026,0.75819244,118480.0,118470.0,0.34384]
[1752418177944,0.82239244,118480.0,118470.0,0.34384]
[1752418178190,0.76138244,118480.0,118470.0,0.378224]
[1752418178424,0.70819244,118480.0,118470.0,0.412214]
[1752418178637,0.70819244,118480.0,118470.0,0.443014]
[1752418179060,0.03276251,118480.0,118470.0,0.443014]
[1752418179696,0.45819244,118480.0,118470.0,0.34683]
[1752418180110,0.45819244,118480.0,118470.0,0.34384]
[1752418180319,0.49408244,118480.0,118470.0,0.34384]
[1752418181624,0.46138244,118480.0,118470.0,0.34384]
[1752418184236,0.46138244,118480.0,118470.0,0.34224]
[1752418184446,0.46138244,118480.0,118470.0,0.376464]
[1752418184682,0.45819244,118480.0,118470.0,0.376464]
[1752418185148,0.46138244,118480.0,118470.0,0.376464]
[1752418186469,0.46342244,118480.0,118470.0,0.376464]
[1752418187589,0.46342244,118480.0,118470.0,0.34224]
[1752418190037,0.46023244,118480.0,118470.0,0.34224]
[1752418190668,0.46342244,118480.0,118470.0,0.34224]
[1752418192029,0.46023244,118480.0,118470.0,0.34224]
[1752418192485,0.45819244,118480.0,118470.0,0.34425]
[1752418192731,0.70819244,118480.0,118470.0,0.381665]
[1752418192957,0.70819244,118480.0,118470.0,0.414065]
[1752418193189,0.70819244,118480.0,118470.0,0.445065]
[1752418193612,0.70819244,118480.0,118470.0,0.414065]
[1752418193851,0.70819244,118480.0,118470.0,0.381665]
[1752418194082,0.70819244,118480.0,118470.0,0.34724]
[1752418194300,0.71024244,118480.0,118470.0,0.34425]
[1752418194746,0.71024244,118480.0,118470.0,0.34224]
[1752418200310,0.9763382,118480.0,118470.0,0.20268]
[1752418200558,0.8001053,118440.0,118430.0,0.20228]
[1752418200774,0.67083608,118440.0,118430.0,0.2762]
[1752418201008,0.03142774,118430.0,118420.0,0.20228]
[1752418201221,0.59,118400.0,118390.0,0.034673]
[1752418201420,0.67542993,118400.0,118390.0,0.20528]
[1752418201631,0.67542993,118400.0,118390.0,0.20228]
[1752418201846,0.67839993,118400.0,118390.0,0.20228]
[1752418202058,0.67839993,118400.0,118390.0,0.20242958]
[1752418202265,0.70038615,118400.0,118390.0,0.20242958]
[1752418202471,0.70038608,118400.0,118390.0,0.47898958]
[1752418202686,0.68897078,118400.0,118390.0,0.49923254]
[1752418202894,0.68997078,118400.0,118390.0,0.50323254]
[1752418203295,0.67542993,118400.0,118390.0,0.50323254]
[1752418204236,0.67542993,118400.0,118390.0,0.50023254]
[1752418204441,0.67442993,118400.0,118390.0,0.47898958]
[1752418204908,0.67442993,118400.0,118390.0,0.20242958]
[1752418205109,0.67442993,118400.0,118390.0,0.47914958]
[1752418205110,0.67739993,118400.0,118390.0,0.47914958]
[1752418205279,0.69194078,118400.0,118390.0,0.47914958]
[1752418205482,0.59,118370.0,118360.0,0.00584051]
[1752418205684,0.67542993,118370.0,118360.0,0.20525021]
[1752418205882,0.67542993,118370.0,118360.0,0.22610523]
[1752418206287,0.70031238,118370.0,118360.0,0.20525021]
[1752418206689,0.72564838,118370.0,118360.0,0.48253021]
[1752418206894,0.72664838,118370.0,118360.0,0.48353021]
[1752418208237,0.77695923,118370.0,118360.0,0.48353021]
[1752418208446,0.79385432,118370.0,118360.0,0.48353021]
[1752418208645,0.34844822,118360.0,118350.0,0.20266]
[1752418208876,0.66161387,118360.0,118350.0,0.20278605]
[1752418209084,0.84038894,118350.0,118340.0,0.003868]
[1752418209294,0.93151814,118350.0,118340.0,0.00045251]
[1752418209505,0.66509033,118340.0,118330.0,0.02749173]
[1752418209722,0.80765164,118310.0,118280.0,0.2225]
[1752418209931,0.62144458,118310.0,118300.0,0.28048]
[1752418210171,0.71532652,118310.0,118300.0,0.28048]
[1752418210388,0.59,118290.0,118280.0,0.2225]
[1752418210596,0.67542993,118290.0,118280.0,0.24806]
[1752418211013,0.70078393,118290.0,118280.0,0.24806]
[1752418211231,0.70093371,118290.0,118280.0,0.24806]
[1752418211452,0.71547456,118290.0,118280.0,0.2225]
[1752418212107,0.71547456,118290.0,118280.0,0.5025]
[1752418212320,0.88791679,118290.0,118280.0,0.3009]
[1752418212533,0.90343764,118290.0,118280.0,0.29246173]
[1752418212988,0.94557904,118290.0,118280.0,0.28402346]
[1752418213209,0.7340694,118290.0,118280.0,0.28402346]
[1752418213428,0.7340694,118290.0,118270.0,0.0001]
[1752418213429,0.75454085,118280.0,118270.0,0.0354]
[1752418213641,0.82542993,118280.0,118270.0,0.0655]
[1752418213853,0.08542993,118280.0,118270.0,0.07205]
[1752418214119,0.08217993,118280.0,118270.0,0.07505]
[1752418214532,0.25314978,118290.0,118280.0,0.0654]
[1752418214777,0.25314978,118290.0,118280.0,0.072905]
[1752418214778,0.33757971,118290.0,118280.0,0.072905]
[1752418214993,0.00214978,118290.0,118280.0,0.358505]
[1752418215684,0.00314978,118290.0,118280.0,0.358505]
[1752418216120,0.00014978,118290.0,118280.0,0.44393493]
[1752418216331,0.25,118320.0,118300.0,0.0654]
[1752418216548,5.004e-05,118320.0,118310.0,0.48576]
[1752418216767,5.004e-05,118320.0,118310.0,0.48876]
[1752418216991,5.004e-05,118320.0,118310.0,0.55416]
[1752418217211,0.25,118350.0,118330.0,0.0654]
[1752418217425,0.31721277,118370.0,118360.0,0.0323]
[1752418217645,0.41044455,118370.0,118360.0,0.31574]
[1752418217892,0.40269275,118370.0,118360.0,0.31874]
[1752418218331,0.41411033,118370.0,118360.0,0.28344]
[1752418218539,0.75980474,118370.0,118360.0,0.28344]
[1752418218751,0.76825232,118370.0,118360.0,0.28344]
[1752418218965,0.7827931,118370.0,118360.0,0.28344]
[1752418219209,0.44259197,118370.0,118360.0,0.314784]
[1752418219445,0.25,118350.0,118340.0,0.003]
[1752418219656,0.67542993,118350.0,118340.0,0.1448]
[1752418219874,0.67542993,118350.0,118340.0,0.178]
[1752418220090,0.67542993,118350.0,118340.0,0.196454]
[1752418220303,0.67542993,118350.0,118340.0,0.227954]
[1752418220551,0.34,118350.0,118340.0,0.227954]
[1752418220776,0.02116204,118370.0,118340.0,0.163254]
[1752418220983,5.005e-05,118370.0,118360.0,0.0647]
[1752418221209,5.005e-05,118370.0,118360.0,0.36386423]
[1752418221423,0.00305005,118370.0,118360.0,0.36786423]
[1752418221877,0.34005005,118370.0,118360.0,0.36686423]
[1752418222089,0.34005005,118370.0,118360.0,0.46683501]
[1752418222090,5.005e-05,118370.0,118360.0,0.46683501]
[1752418222297,0.002,118370.0,118360.0,0.51783501]
[1752418222957,0.4,118400.0,118390.0,0.0332]
[1752418223197,0.4,118400.0,118370.0,0.03622]
[1752418223198,0.33371226,118390.0,118370.0,0.03622]
[1752418223407,0.42542993,118380.0,118370.0,0.04443442]
[1752418223628,0.42542993,118380.0,118370.0,0.24691442]
[1752418223849,0.82542993,118380.0,118370.0,0.24691442]
[1752418224065,0.82542993,118380.0,118370.0,0.27731442]
[1752418224299,0.739,118380.0,118370.0,0.56075442]
[1752418224511,0.82442993,118380.0,118370.0,0.53035442]
[1752418226776,0.42542993,118380.0,118370.0,0.56075442]
[1752418227829,0.08542993,118380.0,118370.0,0.56075442]
[1752418228296,0.59780384,118390.0,118380.0,0.0621]
[1752418228504,0.34780384,118390.0,118380.0,0.12013728]
[1752418228718,0.34780384,118390.0,118380.0,0.12315728]
[1752418228930,0.4,118400.0,118390.0,0.0621]
[1752418229138,0.00781104,118400.0,118390.0,0.3173]
[1752418229354,0.34781104,118400.0,118390.0,0.35483373]
[1752418229582,0.00781104,118400.0,118390.0,0.35483373]
[1752418229802,0.00781104,118400.0,118390.0,0.38653373]
[1752418230223,0.09324097,118400.0,118390.0,0.0317]
[1752418230439,0.59,118390.0,118380.0,0.0317]
[1752418230668,0.67542993,118390.0,118380.0,0.14256]
[1752418231340,0.68324966,118390.0,118380.0,0.14256]
[1752418231550,0.68324966,118390.0,118380.0,0.17828744]
[1752418231771,0.68325335,118390.0,118380.0,0.17828744]
[1752418231997,0.68325335,118390.0,118380.0,0.21300744]
[1752418232425,0.68325335,118390.0,118380.0,0.17728]
[1752418232639,0.68325335,118390.0,118380.0,0.14256]
[1752418233522,0.68325335,118390.0,118380.0,0.14284]
[1752418233734,0.68325335,118390.0,118370.0,0.20348]
[1752418233735,0.34,118380.0,118370.0,0.20348]
[1752418233954,0.34,118380.0,118370.0,0.34628]
[1752418233955,0.55105612,118380.0,118370.0,0.34628]
[1752418234184,0.42542993,118380.0,118370.0,0.380908]
[1752418234437,0.42542993,118380.0,118370.0,0.415328]
[1752418235317,0.42542993,118380.0,118370.0,0.414328]
[1752418235526,0.67542993,118380.0,118370.0,0.414328]
[1752418235743,0.67442993,118380.0,118370.0,0.414328]
[1752418235930,0.68225197,118380.0,118370.0,0.414328]
[1752418236380,0.67742993,118380.0,118370.0,0.415328]
[1752418236592,0.67742993,118380.0,118370.0,0.412308]
[1752418236795,0.68525099,118380.0,118370.0,0.412308]
[1752418237000,0.67642993,118380.0,118370.0,0.412308]
[1752418237215,0.67642993,118380.0,118370.0,0.415328]
[1752418238067,0.67642993,118380.0,118370.0,0.380908]
[1752418239130,0.67642993,118380.0,118370.0,0.34636]
[1752418239340,0.68425039,118380.0,118370.0,0.34636]
[1752418240378,0.6842519,118380.0,118370.0,0.34636]
[1752418241173,0.6842538,118380.0,118370.0,0.34636]
[1752418242014,0.70419747,118380.0,118370.0,0.20348]
[1752418242235,1.08987184,118380.0,118370.0,0.20348]
[1752418242483,1.07776115,118380.0,118370.0,0.34604]
[1752418242919,1.07776115,118380.0,118370.0,0.34504]
[1752418242920,1.07476115,118380.0,118370.0,0.34504]
[1752418243143,1.07977293,118380.0,118370.0,0.34604]
[1752418243343,1.08377293,118380.0,118370.0,0.34604]
[1752418243791,1.02265408,118380.0,118370.0,0.34604]
[1752418244014,1.05571966,118380.0,118370.0,0.34604]
[1752418244218,1.11565039,118380.0,118370.0,0.20348]
[1752418244423,0.95153726,118380.0,118370.0,0.346]
[1752418244638,0.86534334,118380.0,118370.0,0.3806]
[1752418244858,0.8681535,118380.0,118370.0,0.346]
[1752418245071,1.06172023,118380.0,118370.0,0.346]
[1752418245275,1.08425096,118380.0,118370.0,0.345]
[1752418245484,1.07925096,118380.0,118370.0,0.345]
[1752418245892,1.08825096,118380.0,118370.0,0.346]
[1752418246137,1.13272736,118380.0,118370.0,0.346]
[1752418246366,1.12428006,118380.0,118370.0,0.20348]
[1752418246575,1.15568006,118380.0,118370.0,0.34612]
[1752418246785,1.21093442,118380.0,118370.0,0.34604]
[1752418246991,0.59,118340.0,118330.0,0.00302]
[1752418247193,0.68326558,118340.0,118330.0,0.23855743]
[1752418248032,0.68326558,118340.0,118330.0,0.20293743]
[1752418248453,0.74993213,118340.0,118330.0,0.34537743]
[1752418248668,0.80316077,118340.0,118330.0,0.34537743]
[1752418248878,1.01523538,118340.0,118330.0,0.20293743]
[1752418249087,1.041625,118340.0,118330.0,0.34533743]
[1752418249285,1.06427997,118340.0,118330.0,0.34533743]
[1752418249495,0.87161454,118340.0,118330.0,0.34533743]
[1752418249716,0.88655022,118340.0,118330.0,0.34533743]
[1752418249929,0.86520008,118340.0,118330.0,0.34533743]
[1752418250142,0.83496237,118340.0,118330.0,0.34533743]
[1752418250566,0.19579218,118340.0,118330.0,0.41247117]
[1752418250787,0.89911797,118340.0,118330.0,0.41549117]
[1752418250990,0.39296735,118340.0,118330.0,0.37987117]
[1752418251212,0.71482725,118340.0,118330.0,0.37987117]
[1752418251433,0.73296735,118340.0,118330.0,0.41549117]
[1752418251639,0.72707236,118340.0,118330.0,0.41549117]
[1752418251858,0.38707236,118340.0,118330.0,0.41549117]
[1752418252070,0.36993226,118340.0,118330.0,0.41549117]
[1752418252510,0.34629149,118340.0,118330.0,0.44779117]
[1752418252719,0.35229149,118340.0,118330.0,0.44779117]
[1752418254472,0.01686156,118340.0,118330.0,0.44779117]
[1752418254686,0.009,118340.0,118330.0,0.44779117]
[1752418255140,0.006,118340.0,118330.0,0.44779117]
[1752418255378,0.009,118340.0,118330.0,0.44779117]
[1752418255611,0.003,118340.0,118330.0,0.44779117]
[1752418255822,0.34786156,118350.0,118330.0,0.38289117]
[1752418256045,0.34786156,118350.0,118340.0,0.0661]
[1752418256275,0.34786156,118350.0,118340.0,0.11069712]
[1752418256710,0.34786156,118350.0,118340.0,0.11280967]
[1752418257119,0.34786156,118350.0,118340.0,0.11069712]
[1752418257329,0.34886156,118350.0,118340.0,0.11069712]
[1752418257756,0.34985059,118350.0,118340.0,0.11069712]
[1752418258402,0.34885059,118350.0,118340.0,0.11069712]
[1752418259074,0.34985059,118350.0,118340.0,0.11169712]
[1752418259289,0.34985059,118350.0,118340.0,0.11380967]
[1752418259499,0.43528052,118350.0,118340.0,0.11169712]
[1752418259718,0.43528052,118350.0,118340.0,0.25345712]
[1752418260148,0.43528052,118350.0,118340.0,0.11169712]
[1752418260364,0.34985059,118350.0,118340.0,0.25345712]
[1752418260605,0.00985059,118350.0,118340.0,0.25345712]
[1752418260824,0.002,118350.0,118340.0,0.25345712]
[1752418264502,0.002,118350.0,118340.0,0.11169712]
[1752418264734,0.002,118350.0,118340.0,0.25329712]
[1752418265246,0.342,118350.0,118340.0,0.11169712]
[1752418265478,0.342,118350.0,118340.0,0.25325712]
[1752418265722,0.002,118350.0,118340.0,0.3532279]
[1752418265964,0.26638465,118400.0,118390.0,0.0612]
[1752418266205,0.25786333,118400.0,118390.0,0.556]
[1752418266457,0.67264077,118420.0,118410.0,0.031]
[1752418266678,1.0832893,118420.0,118410.0,0.3172]
[1752418266925,0.51141318,118420.0,118410.0,0.3172]
[1752418267150,0.25,118440.0,118420.0,0.0612]
[1752418267386,0.25799905,118440.0,118430.0,0.34955095]
[1752418267607,0.00799905,118440.0,118430.0,0.34744]
[1752418267825,0.00015017,118440.0,118430.0,0.382184]
[1752418268058,0.00784822,118460.0,118430.0,0.382184]
[1752418268285,0.28021365,118470.0,118450.0,0.0648]
[1752418268501,0.12349119,118470.0,118460.0,0.5215]
[1752418268714,0.08542993,118470.0,118460.0,0.60874]
[1752418268922,0.48542993,118470.0,118460.0,0.54074]
[1752418269153,0.49327754,118470.0,118460.0,0.54074]
[1752418269384,0.49627754,118470.0,118460.0,0.54074]
[1752418269604,0.83627754,118470.0,118460.0,0.54074]
[1752418269816,0.83327754,118470.0,118460.0,0.54074]
[1752418270298,0.83727754,118470.0,118460.0,0.54174]
[1752418270523,0.44027754,118470.0,118460.0,0.4864]
[1752418270742,0.49008965,118470.0,118460.0,0.4864]
[1752418270964,0.56225207,118470.0,118460.0,0.4864]
[1752418271185,0.62583577,118470.0,118460.0,0.4874]
[1752418271403,0.61739503,118470.0,118460.0,0.4874]
[1752418271633,0.61739503,118470.0,118460.0,0.53614]
[1752418271845,0.62583562,118470.0,118460.0,0.4874]
[1752418272102,0.61739503,118470.0,118460.0,0.4874]
[1752418272311,0.60895451,118470.0,118460.0,0.4874]
[1752418272523,0.62583577,118470.0,118460.0,0.4874]
[1752418272738,0.6258357,118470.0,118460.0,0.4874]
[1752418272946,0.59,118440.0,118430.0,0.237104]
[1752418273211,0.67542993,118440.0,118430.0,0.237104]
[1752418273659,0.70074893,118440.0,118430.0,0.270004]
[1752418274103,0.70074893,118440.0,118430.0,0.410924]
[1752418274544,0.70074893,118440.0,118430.0,0.378024]
[1752418274981,0.70374893,118440.0,118430.0,0.379024]
[1752418275437,0.70674893,118440.0,118430.0,0.3442]
[1752418275669,0.75333505,118440.0,118430.0,0.34416]
[1752418275877,0.78663505,118440.0,118430.0,0.34516]
[1752418276536,0.78463505,118440.0,118430.0,0.34416]
[1752418276741,0.78863505,118440.0,118430.0,0.34516]
[1752418276946,0.7297167,118440.0,118430.0,0.379676]
[1752418277171,0.70774893,118440.0,118430.0,0.379676]
[1752418277439,0.70474893,118440.0,118430.0,0.378676]
[1752418277698,0.70774893,118440.0,118430.0,0.34416]
[1752418278006,0.70974893,118440.0,118430.0,0.34516]
[1752418278481,0.45974893,118440.0,118430.0,0.34516]
[1752418278691,0.70974893,118440.0,118430.0,0.379676]
[1752418278891,0.70974893,118440.0,118430.0,0.34516]
[1752418281163,0.71274893,118440.0,118430.0,0.34516]
[1752418281414,0.7338142,118440.0,118430.0,0.34516]
[1752418281676,0.7308142,118440.0,118430.0,0.379676]
[1752418281912,0.7308142,118440.0,118430.0,0.34516]
[1752418282436,0.36974893,118440.0,118430.0,0.37696]
[1752418282695,0.36974893,118440.0,118430.0,0.38016]
[1752418282940,0.34442993,118440.0,118430.0,0.38016]
[1752418283202,0.68442993,118440.0,118430.0,0.41116]
[1752418283453,0.34442993,118440.0,118430.0,0.452276]
[1752418285059,0.259,118440.0,118430.0,0.452276]
[1752418285293,0.009,118440.0,118430.0,0.452276]
[1752418286067,0.005,118440.0,118430.0,0.451276]
[1752418286545,0.345,118440.0,118430.0,0.451276]
[1752418287019,0.347,118440.0,118430.0,0.451276]
[1752418287472,0.342,118440.0,118430.0,0.450276]
[1752418287713,0.347,118440.0,118430.0,0.451276]
[1752418287951,0.342,118440.0,118430.0,0.450276]
[1752418288182,0.34,118440.0,118430.0,0.450276]
[1752418288413,0.343,118440.0,118430.0,0.451276]
[1752418288642,0.344,118440.0,118430.0,0.451276]
[1752418290212,0.42942993,118440.0,118430.0,0.3432]
[1752418290428,0.45714828,118440.0,118430.0,0.3432]
[1752418290700,0.49030331,118440.0,118430.0,0.3432]
[1752418290905,0.50926435,118440.0,118430.0,0.3432]
[1752418291114,0.54236476,118440.0,118430.0,0.3432]
[1752418291325,0.54136476,118440.0,118430.0,0.3432]
[1752418291544,0.53836476,118440.0,118430.0,0.3422]
[1752418291753,0.54136476,118440.0,118430.0,0.23758]
[1752418291967,0.54836476,118440.0,118430.0,0.34416]
[1752418292390,0.54536476,118440.0,118430.0,0.34316]
[1752418292656,0.61833402,118440.0,118430.0,0.20336]
[1752418292896,0.88226013,118440.0,118430.0,0.14072]
[1752418293163,0.59,118390.0,118380.0,0.23829]
[1752418293409,0.34,118390.0,118380.0,0.26844017]
[1752418293626,0.34,118390.0,118380.0,0.29528419]
[1752418293847,0.67542993,118390.0,118380.0,0.29528419]
[1752418294057,0.67442993,118390.0,118380.0,0.26211419]
[1752418294272,0.67442993,118390.0,118380.0,0.40191419]
[1752418294493,0.67442993,118390.0,118380.0,0.36911419]
[1752418294749,0.69439097,118390.0,118380.0,0.34327017]
[1752418294990,0.69339097,118390.0,118380.0,0.34227017]
[1752418295241,0.69639097,118390.0,118380.0,0.34327017]
[1752418295484,0.69639097,118390.0,118380.0,0.37759719]
[1752418295758,0.44339097,118390.0,118380.0,0.37659719]
[1752418295994,0.67442993,118390.0,118380.0,0.37655719]
[1752418296231,0.67642993,118390.0,118380.0,0.37655719]
[1752418296680,0.67642993,118390.0,118380.0,0.34223017]
[1752418296946,0.67642993,118390.0,118380.0,0.20247017]
[1752418297163,0.74849097,118390.0,118380.0,0.34215017]
[1752418297378,0.74739097,118390.0,118380.0,0.34215017]
[1752418298106,0.49739097,118390.0,118380.0,0.34215017]
[1752418298347,0.74739097,118390.0,118380.0,0.37668219]
[1752418298795,0.72842993,118390.0,118380.0,0.41145219]
[1752418299024,0.643,118390.0,118380.0,0.44415219]
[1752418299476,0.304,118390.0,118380.0,0.44415219]
[1752418299711,0.644,118390.0,118380.0,0.44415219]
[1752418300153,0.054,118390.0,118380.0,0.44415219]
[1752418301472,0.002,118390.0,118380.0,0.44415219]
[1752418301686,0.001,118390.0,118380.0,0.44415219]
[1752418303716,0.275322,118420.0,118390.0,0.0643]
[1752418303932,0.34329058,118420.0,118410.0,0.0316]
[1752418304145,0.67542993,118420.0,118410.0,0.0316]
[1752418304358,0.67542993,118420.0,118410.0,0.03477]
[1752418304583,0.67542993,118420.0,118410.0,0.06747]
[1752418305014,0.67642993,118420.0,118410.0,0.06747]
[1752418305233,0.67642993,118420.0,118410.0,0.069481]
[1752418305463,0.67542993,118420.0,118410.0,0.069481]
[1752418305879,0.67942993,118420.0,118410.0,0.069481]
[1752418306325,0.68729108,118420.0,118410.0,0.069481]
[1752418307035,0.68729105,118420.0,118410.0,0.069481]
[1752418307253,0.67942993,118420.0,118410.0,0.069481]
[1752418307915,0.67942993,118420.0,118410.0,0.102181]
[1752418307916,0.08942993,118420.0,118410.0,0.102181]
[1752418308153,0.004,118420.0,118410.0,0.1042923]
[1752418308370,0.344,118420.0,118410.0,0.102181]
[1752418308819,0.67942993,118420.0,118400.0,0.31064]
[1752418309047,0.08542993,118410.0,118400.0,0.31064]
[1752418309264,0.08542993,118410.0,118400.0,0.27964]
[1752418310188,0.08742993,118410.0,118400.0,0.27964]
[1752418310419,0.08742993,118410.0,118400.0,0.31236252]
[1752418310887,0.08742993,118410.0,118400.0,0.31336252]
[1752418311332,0.08742993,118410.0,118400.0,0.31236252]
[1752418311546,0.08942993,118410.0,118400.0,0.31336252]
[1752418311763,0.33942993,118410.0,118400.0,0.34436252]
[1752418311983,0.33942993,118410.0,118400.0,0.34753252]
[1752418312192,0.67942993,118410.0,118400.0,0.34753252]
[1752418312634,1.07942993,118410.0,118400.0,0.34753252]
[1752418312846,1.07942993,118410.0,118400.0,0.31336252]
[1752418314903,0.73121254,118410.0,118400.0,0.28064]
[1752418315171,0.78080214,118410.0,118400.0,0.28064]
[1752418315394,0.76391254,118410.0,118400.0,0.28064]
[1752418315874,0.76191254,118410.0,118400.0,0.27964]
[1752418316105,0.81050254,118410.0,118400.0,0.27964]
[1752418316339,0.73421254,118410.0,118400.0,0.307604]
[1752418316564,0.73021254,118410.0,118400.0,0.307604]
[1752418316790,0.73521254,118410.0,118400.0,0.307604]
[1752418317484,0.73521254,118410.0,118400.0,0.27964]
[1752418318160,0.73221254,118410.0,118400.0,0.27964]
[1752418318403,0.73521254,118410.0,118400.0,0.27964]
[1752418319488,0.45093254,118410.0,118400.0,0.27964]
[1752418319732,0.74385727,118410.0,118400.0,0.27964]
[1752418319957,0.73541254,118410.0,118400.0,0.27964]
[1752418320416,0.73541254,118410.0,118400.0,0.307604]
[1752418321327,0.7691852,118410.0,118400.0,0.27964]
[1752418321555,0.76918527,118410.0,118400.0,0.27964]
[1752418321768,1.10263166,118410.0,118400.0,0.27964]
[1752418321981,1.11107689,118410.0,118400.0,0.27964]
[1752418322183,0.92528189,118410.0,118400.0,0.27964]
[1752418322400,0.90772443,118410.0,118400.0,0.27964]
[1752418322615,0.93429723,118410.0,118400.0,0.27964]
[1752418322884,0.93429715,118410.0,118400.0,0.27964]
[1752418323100,0.92585214,118410.0,118400.0,0.27964]
[1752418323301,0.91616922,118410.0,118400.0,0.27964]
[1752418323540,0.8908344,118410.0,118400.0,0.307604]
[1752418323760,0.57587139,118410.0,118400.0,0.307604]
[1752418323978,0.82587139,118410.0,118400.0,0.307604]
[1752418324213,0.45875793,118410.0,118400.0,0.307604]
[1752418324448,0.70875793,118410.0,118400.0,0.307604]
[1752418324670,0.72038252,118410.0,118400.0,0.307604]
[1752418324902,0.74213793,118410.0,118400.0,0.27964]
[1752418325132,0.8326034,118410.0,118400.0,0.27964]
[1752418325359,1.02406339,118410.0,118400.0,0.27964]
[1752418325581,1.06680475,118410.0,118400.0,0.27964]
[1752418326244,1.07467358,118410.0,118400.0,0.27964]
[1752418326465,0.90576893,118410.0,118400.0,0.27964]
[1752418326721,0.88887802,118410.0,118400.0,0.307604]
[1752418326945,0.83383652,118410.0,118400.0,0.307604]
[1752418327171,0.86183652,118410.0,118400.0,0.27964]
[1752418327402,0.77806878,118410.0,118400.0,0.27964]
[1752418327626,0.59,118390.0,118380.0,0.03367094]
[1752418327854,0.72601993,118390.0,118380.0,0.2024]
[1752418328082,0.72601993,118390.0,118380.0,0.22264]
[1752418328760,0.72601993,118390.0,118380.0,0.36116]
[1752418329645,0.72801993,118390.0,118380.0,0.36116]
[1752418329869,0.67742993,118390.0,118380.0,0.39575]
[1752418330090,0.68142993,118390.0,118380.0,0.39575]
[1752418330318,0.43142993,118390.0,118380.0,0.39575]
[1752418330582,1.08142993,118390.0,118380.0,0.39575]